bitfinex-derivatives/quotes_SOLF0:USTF0_20250202
["timestamp","ask_amount","ask_price","bid_price","bid_amount"]
[1738485374475,0.03231734,214.42,214.39,0.03267032]
[1738485374874,0.03231734,214.42,214.41,39.32023875]
[1738485375576,0.03231734,214.42,214.41,53.78960553]
[1738485375967,4.3279,214.57,214.41,14.46936678]
[1738485376271,4.3279,214.57,214.45,14.46936678]
[1738485376477,0.3279,214.57,214.49,14.46936678]
[1738485376678,14.46936678,214.63,214.47,128.63214854]
[1738485376978,14.46936678,214.67,214.49,14.46936678]
[1738485377173,28.53936678,214.72,214.49,14.46936678]
[1738485377174,0.03064775,214.57,214.53,0.03481013]
[1738485377373,14.46936678,214.72,214.53,14.46936678]
[1738485377678,0.03514424,214.57,214.53,14.49995825]
[1738485377874,0.18647,214.74,214.53,14.46936678]
[1738485378077,0.18647,214.74,214.64,14.46936678]
[1738485378279,0.18647,214.74,214.67,4.6598]
[1738485378478,0.18647,214.74,214.64,14.46936678]
[1738485378672,0.18647,214.74,214.68,14.46936678]
[1738485378873,0.18647,214.74,214.62,4.6609]
[1738485379078,0.03483494,214.73,214.69,0.03216285]
[1738485379379,0.18647,214.74,214.7,19.12846678]
[1738485379578,14.46936678,214.95,214.72,14.46936678]
[1738485379876,14.46936678,214.95,214.79,14.46936678]
[1738485380075,28.53936678,214.95,214.75,14.46936678]
[1738485380278,28.53936678,214.91,214.71,14.46936678]
[1738485380478,14.46936678,214.87,214.71,14.46936678]
[1738485380673,14.46936678,214.87,214.77,0.03128872]
[1738485380879,0.03230398,214.81,214.77,0.03128872]
[1738485381680,0.03230398,214.81,214.77,4.68878872]
[1738485381979,0.03230398,214.81,214.77,0.03128872]
[1738485382378,3.98e-06,214.81,214.79,19.12646678]
[1738485382574,1.5505,214.93,214.79,14.46936678]
[1738485382779,1.5505,214.93,214.84,4.656]
[1738485382976,1.5505,214.93,214.79,14.46936678]
[1738485383782,0.03137418,214.88,214.84,0.03112033]
[1738485384385,14.46936678,215.01,214.9,4.6547]
[1738485384583,17.98936678,215.01,214.9,4.6547]
[1738485384783,4.9526,215.04,214.87,14.46936678]
[1738485385486,14.46936678,215.27,214.93,0.03393222]
[1738485385487,0.03121011,214.98,214.93,0.03393222]
[1738485385689,14.46936678,215.09,214.94,4.6539]
[1738485385988,0.03354882,214.98,214.93,0.03009407]
[1738485386182,14.46936678,215.01,214.89,4.655]
[1738485386378,0.03001261,214.98,214.93,0.03009896]
[1738485386887,14.46936678,214.97,214.93,0.03009896]
[1738485387280,0.03001261,214.98,214.93,0.03009896]
[1738485388485,0.03001261,214.98,214.94,4.6539]
[1738485388682,0.03001261,214.98,214.93,0.03009896]
[1738485389283,14.46936678,214.97,214.93,0.03009896]
[1738485389486,1.513,214.96,214.79,14.46936678]
[1738485389791,14.46936678,214.92,214.76,2.8816]
[1738485389987,14.46936678,214.92,214.76,1.4589]
[1738485390399,14.46936678,214.88,214.7,1.1082]
[1738485390690,0.03309374,214.86,214.82,0.03124034]
[1738485390893,14.46936678,214.89,214.75,4.658]
[1738485391090,0.03464931,214.86,214.82,0.03155431]
[1738485391285,0.03464931,214.86,214.7,2.5946]
[1738485391490,14.46936678,214.88,214.82,0.03030351]
[1738485391786,0.03217302,214.8,214.7,2.5946]
[1738485391989,14.46936678,214.88,214.83,0.03101394]
[1738485392192,14.46936678,214.88,214.7,2.5946]
[1738485392993,0.03344689,214.81,214.77,0.03168573]
[1738485393394,0.03344689,214.81,214.78,4.6574]
[1738485394293,0.03344689,214.81,214.79,4.6572]
[1738485394496,0.03344689,214.81,214.77,0.03168573]
[1738485395586,19.12646678,214.8,214.77,0.03168573]
[1738485395791,14.46936678,214.8,214.63,2.951]
[1738485395990,14.434973,214.8,214.63,2.951]
[1738485396789,19.092073,214.8,214.71,4.6589]
[1738485396991,0.03030102,214.74,214.71,4.6589]
[1738485397188,0.03030102,214.74,214.68,4.6596]
[1738485397393,0.03030102,214.74,214.7,0.030914]
[1738485398390,14.46936678,214.78,214.7,0.030914]
[1738485398591,14.46936678,214.78,214.63,1.5357]
[1738485398795,14.46936678,214.74,214.63,1.5357]
[1738485398995,4.6581,214.76,214.63,1.5357]
[1738485399196,14.46936678,214.78,214.63,1.5357]
[1738485399496,4.6582,214.75,214.63,1.5357]
[1738485399695,0.03496181,214.73,214.68,0.03288023]
[1738485400391,0.00380479,214.73,214.68,0.03288023]
[1738485400797,0.00380479,214.73,214.71,4.659]
[1738485401199,0.14453472,214.83,214.68,0.03288023]
[1738485401395,0.14453472,214.83,214.58,16.02066678]
[1738485401598,14.46936678,214.76,214.58,16.02066678]
[1738485401798,4.6589,214.72,214.64,4.6605]
[1738485401996,14.46936678,214.72,214.54,14.46936678]
[1738485402298,0.0331551,214.67,214.62,0.03418129]
[1738485402499,0.0131551,214.67,214.66,4.6601]
[1738485403302,14.46936678,214.81,214.62,14.50354807]
[1738485403503,4.6575,214.78,214.62,14.50354807]
[1738485403702,4.6575,214.78,214.62,14.46936678]
[1738485403998,4.6577,214.77,214.62,14.46936678]
[1738485404201,14.46936678,214.77,214.58,14.46936678]
[1738485404396,0.03396955,214.72,214.67,0.03198117]
[1738485404602,4.6593,214.7,214.67,0.03198117]
[1738485404900,0.03396955,214.72,214.67,0.03198117]
[1738485406101,14.46936678,214.69,214.67,0.03198117]
[1738485406300,14.46936678,214.69,214.52,2.877]
[1738485406498,14.46936678,214.65,214.52,2.877]
[1738485406705,4.6609,214.63,214.55,4.6623]
[1738485406900,14.46936678,214.65,214.52,2.877]
[1738485407297,19.12966678,214.65,214.52,2.877]
[1738485407606,0.03022031,214.61,214.56,0.03412773]
[1738485408308,4.69142031,214.61,214.56,0.03412773]
[1738485408903,0.03022031,214.61,214.56,0.03412773]
[1738485409396,0.03022031,214.61,214.58,4.6617]
[1738485411105,0.03022031,214.61,214.59,4.6616]
[1738485411707,14.46936678,214.77,214.68,4.6596]
[1738485411903,1.4654,214.72,214.68,4.6596]
[1738485412306,4.6581,214.76,214.59,2.9901]
[1738485412607,4.6581,214.76,214.69,4.6593]
[1738485412802,4.68966957,214.75,214.7,0.03017446]
[1738485413008,0.03146957,214.75,214.7,0.03017446]
[1738485413410,4.68966957,214.75,214.7,0.03017446]
[1738485413611,0.03146957,214.75,214.7,0.03017446]
[1738485415407,4.6587,214.73,214.7,0.03017446]
[1738485416509,0.03146957,214.75,214.7,0.03017446]
[1738485416711,4.6589,214.72,214.71,3.52077642]
[1738485416911,0.03146957,214.75,214.71,3.52077642]
[1738485417311,0.03146957,214.75,214.72,3.52077642]
[1738485417712,0.03146957,214.75,214.7,0.03017446]
[1738485418211,6.957e-05,214.75,214.7,0.03017446]
[1738485418414,6.957e-05,214.75,214.74,4.6584]
[1738485419315,6.957e-05,214.75,214.74,19.97423587]
[1738485419509,6.957e-05,214.75,214.74,19.12776678]
[1738485419911,6.957e-05,214.75,214.74,4.6584]
[1738485420117,6.957e-05,214.75,214.74,29.40065405]
[1738485420415,14.46936678,214.86,214.74,29.40065405]
[1738485420416,14.46936678,214.83,214.74,24.74225405]
[1738485420918,14.46936678,214.83,214.77,4.6575]
[1738485421119,1.17495548,214.93,214.74,170.24789825]
[1738485421314,1.17495548,214.93,214.81,0.03461993]
[1738485421514,4.6545,214.92,214.84,4.656]
[1738485421720,4.6545,214.92,214.81,0.03461993]
[1738485421721,1.17495548,214.93,214.74,170.24789825]
[1738485421921,1.17495548,214.93,214.86,0.03536729]
[1738485422225,1.17495548,214.93,214.87,0.03263075]
[1738485422417,1.17495548,214.93,214.74,170.24789825]
[1738485422418,4.6549,214.9,214.82,4.6564]
[1738485422623,1.17495548,214.93,214.81,0.03007246]
[1738485422822,14.46936678,214.91,214.81,0.03007246]
[1738485423727,5.82935548,214.93,214.84,4.6561]
[1738485424026,14.46936678,214.94,214.78,14.46936678]
[1738485424226,3.48,214.98,214.86,0.02947414]
[1738485424427,3.48,214.98,214.86,4.68517414]
[1738485424727,3.48,214.98,214.86,0.02947414]
[1738485424924,4.6535,214.97,214.89,4.6551]
[1738485425121,0.92988655,215.08,214.86,14.46936678]
[1738485425321,4.3674,215.07,214.91,0.03488382]
[1738485425527,4.3674,215.07,214.87,1.4572]
[1738485425731,4.6522,215.03,214.96,0.03345043]
[1738485425921,4.3674,215.07,214.96,0.03345043]
[1738485426329,4.6518,215.05,214.98,4.6531]
[1738485426829,4.6518,215.05,214.99,0.03145911]
[1738485427529,4.6523,215.02,214.99,0.03145911]
[1738485427730,14.46936678,215.05,214.99,0.03145911]
[1738485428428,4.6534,214.97,214.89,4.655]
[1738485428623,14.46936678,215.0,214.87,126.12248601]
[1738485428825,14.46936678,214.96,214.87,126.12248601]
[1738485429529,0.0335039,214.94,214.89,0.03269733]
[1738485430026,4.6876039,214.94,214.89,0.03269733]
[1738485430528,0.0335039,214.94,214.89,0.03269733]
[1738485431631,4.6547,214.91,214.89,0.03269733]
[1738485432623,14.46936678,214.92,214.75,2.9321]
[1738485432827,14.46936678,214.88,214.75,2.9321]
[1738485433029,15.86556678,214.94,214.75,2.9321]
[1738485433533,15.86556678,214.94,214.82,4.6564]
[1738485433723,0.03482169,214.87,214.82,0.03283386]
[1738485434233,0.03482169,214.87,214.85,4.6559]
[1738485435534,13.99,215.04,214.82,0.03283386]
[1738485435535,14.46936678,215.02,214.84,14.46936678]
[1738485435730,3.46,215.04,214.85,1.4292]
[1738485435932,4.6527,215.0,214.9,4.6547]
[1738485436132,4.6527,215.0,214.85,1.4292]
[1738485436427,0.03186899,214.95,214.9,0.03144435]
[1738485436634,0.03186899,214.95,214.93,4.6542]
[1738485438130,0.03186899,214.95,214.9,0.02945233]
[1738485438330,14.46936678,214.93,214.9,0.02945233]
[1738485438529,14.46936678,214.93,214.76,2.9449]
[1738485438530,4.655,214.9,214.76,2.9449]
[1738485438730,14.46936678,214.93,214.76,2.9449]
[1738485439734,0.03156409,214.87,214.82,0.03416149]
[1738485441128,0.03156409,214.87,214.83,4.6563]
[1738485441631,0.03156409,214.87,214.82,0.03416149]
[1738485441827,0.03156409,214.87,214.84,4.6561]
[1738485442034,0.03156409,214.87,214.82,0.03416149]
[1738485442231,0.03156409,214.87,214.84,4.6561]
[1738485443036,0.03156409,214.87,214.82,0.03416149]
[1738485444135,0.03156409,214.87,214.85,4.6559]
[1738485444735,6.1278,214.96,214.89,4.6549]
[1738485444932,1.4741,214.96,214.89,4.6549]
[1738485445435,4.6538,214.95,214.87,4.6554]
[1738485445627,4.6538,214.95,214.89,0.03469876]
[1738485445830,0.03367031,214.93,214.89,0.03469876]
[1738485446034,0.03367031,214.93,214.89,4.68979876]
[1738485446736,0.03367031,214.93,214.89,0.03469876]
[1738485447741,0.03367031,214.93,214.89,4.68979876]
[1738485450142,0.03367031,214.93,214.9,4.6548]
[1738485450336,0.03367031,214.93,214.89,0.03469876]
[1738485450735,0.03367031,214.93,214.9,4.6549]
[1738485450934,0.03367031,214.93,214.89,0.03469876]
[1738485451341,0.03367031,214.93,214.92,4.6544]
[1738485451542,0.03367031,214.93,214.89,0.03469876]
[1738485452945,0.03367031,214.93,214.9,4.6549]
[1738485453940,0.03367031,214.93,214.89,0.03469876]
[1738485456245,0.03367031,214.93,214.92,4.6544]
[1738485456645,0.03367031,214.93,214.89,0.03469876]
[1738485458647,4.68797031,214.93,214.89,0.03469876]
[1738485458940,0.03367031,214.93,214.89,0.03469876]
[1738485459447,4.68807031,214.93,214.89,0.03469876]
[1738485459640,0.03367031,214.93,214.89,0.03469876]
[1738485461143,0.03367031,214.93,214.85,124.66528601]
[1738485461144,14.46936678,214.9,214.85,124.66528601]
[1738485461646,14.46936678,214.86,214.83,153.62583147]
[1738485461849,14.46936678,214.86,214.83,96.67370665]
[1738485462147,4.6562,214.84,214.75,190.29518888]
[1738485462340,4.6562,214.84,214.82,0.03365014]
[1738485462543,14.46936678,214.86,214.81,4.6568]
[1738485462746,0.03035342,214.85,214.81,0.03056658]
[1738485463454,14.46936678,214.94,214.81,0.03056658]
[1738485463745,14.46936678,214.94,214.76,10.20288224]
[1738485464346,40.3227576,214.94,214.77,0.8448676]
[1738485464549,0.03031067,214.87,214.83,0.03221509]
[1738485466043,0.03031067,214.87,214.85,4.6559]
[1738485466651,0.03031067,214.87,214.85,4.6122448]
[1738485467851,0.03031067,214.87,214.83,4.68841509]
[1738485468755,0.03031067,214.87,214.85,4.6558]
[1738485468950,0.03031067,214.87,214.83,0.03221509]
[1738485469355,14.46936678,214.86,214.83,0.03221509]
[1738485469858,0.03031067,214.87,214.83,0.03221509]
[1738485470059,0.03031067,214.87,214.85,4.6559]
[1738485470958,0.03031067,214.87,214.83,0.03221509]
[1738485471857,0.03031067,214.87,214.85,4.6559]
[1738485472065,0.03031067,214.87,214.83,0.03221509]
[1738485472556,0.03031067,214.87,214.86,4.6557]
[1738485476761,3.34,215.02,214.92,4.6544]
[1738485477063,3.34,215.02,214.81,14.46936678]
[1738485477456,4.6535,214.97,214.91,4.6546]
[1738485477659,3.34,215.02,214.81,14.46936678]
[1738485477967,4.6542,214.93,214.92,0.03568859]
[1738485478265,14.46936678,215.05,214.92,0.03568859]
[1738485478567,4.6524,215.02,214.85,14.46936678]
[1738485478764,4.6524,215.02,214.96,0.03294851]
[1738485478961,4.6524,215.02,214.9,2.8586]
[1738485479158,4.653,214.99,214.97,0.03425405]
[1738485479465,14.46936678,215.05,214.97,0.03425405]
[1738485479666,14.46936678,215.0,214.97,0.03425405]
[1738485479867,4.6531,214.98,214.97,0.03425405]
[1738485480368,14.46936678,215.05,214.97,0.03425405]
[1738485480564,17.80936678,215.05,214.97,0.03425405]
[1738485481366,4.652,215.04,214.97,4.68755405]
[1738485481567,14.46936678,215.05,214.97,4.68755405]
[1738485482266,19.12116678,215.05,214.97,4.68755405]
[1738485482466,4.6518,215.05,214.97,4.68755405]
[1738485482662,4.28988655,215.08,214.97,4.68755405]
[1738485483269,4.28988655,215.08,214.98,4.653]
[1738485483870,4.6519,215.04,214.97,4.68765405]
[1738485485870,4.6521,215.03,214.97,4.68765405]
[1738485486570,14.46936678,215.05,214.99,4.6529]
[1738485487463,14.46936678,215.05,214.97,0.03425405]
[1738485488069,4.6526,215.01,214.94,4.654]
[1738485488270,14.46936678,215.05,214.9,1.3994]
[1738485488772,14.46936678,215.01,214.9,1.3994]
[1738485489376,0.03509534,214.98,214.94,4.654]
[1738485489671,0.03509534,214.98,214.93,0.03084539]
[1738485489869,4.654,214.94,214.93,0.03084539]
[1738485490673,3.32,214.96,214.8,1.4027]
[1738485490870,14.46936678,214.91,214.8,1.4027]
[1738485491869,4.6559,214.86,214.83,0.0313862]
[1738485492076,4.6559,214.86,214.8,1.4027]
[1738485492077,14.46936678,214.87,214.8,1.4027]
[1738485492278,14.46936678,214.87,214.82,0.03325041]
[1738485493679,14.46936678,214.83,214.72,4.2849]
[1738485493867,14.46936678,214.87,214.72,4.2849]
[1738485494169,14.46936678,214.91,214.74,14.46936678]
[1738485494374,14.46936678,214.91,214.75,0.84529392]
[1738485494676,14.46936678,214.91,214.74,14.46936678]
[1738485494875,0.03514639,214.85,214.81,0.03437187]
[1738485497674,14.46936678,214.83,214.81,0.03437187]
[1738485498377,14.46936678,214.83,214.72,1.4102]
[1738485498573,14.46936678,214.79,214.72,1.4102]
[1738485498779,14.46936678,214.83,214.75,4.6581]
[1738485498973,14.46936678,214.83,214.72,1.4102]
[1738485499179,14.46936678,214.87,214.72,1.4102]
[1738485499381,14.46936678,214.91,214.81,4.6566]
[1738485499680,0.03316139,214.82,214.77,0.02972353]
[1738485499881,14.46936678,214.91,214.73,1.4149]
[1738485500075,0.02967126,214.82,214.77,14.50004754]
[1738485500377,6.4633477,214.94,214.78,1.5285]
[1738485501379,6.4633477,214.94,214.84,0.0303959]
[1738485501380,0.03199396,214.88,214.84,0.0303959]
[1738485501685,0.03199396,214.88,214.87,4.6554]
[1738485502177,6.4633477,214.94,214.84,0.0303959]
[1738485502684,14.46936678,214.95,214.84,0.0303959]
[1738485502884,4.654,214.94,214.86,4.6556]
[1738485503183,14.46936678,214.95,214.78,1.5285]
[1738485503388,0.03349346,214.92,214.88,0.03024094]
[1738485507991,14.46936678,214.91,214.88,0.03024094]
[1738485508685,4.6551,214.89,214.88,0.03024094]
[1738485509187,4.6557,214.87,214.79,1.5144]
[1738485509486,14.46936678,214.91,214.79,1.5144]
[1738485509779,14.46936678,214.94,214.73,1.4149]
[1738485509984,14.46936678,214.94,214.76,14.46936678]
[1738485510283,14.46936678,214.94,214.83,0.02988632]
[1738485510479,0.03545948,214.87,214.83,0.02988632]
[1738485510883,16.00196678,214.98,214.83,0.02988632]
[1738485511190,14.46936678,214.98,214.8,14.46936678]
[1738485512077,0.03001258,214.91,214.87,0.03541599]
[1738485513278,0.03001258,214.91,214.9,4.6549]
[1738485514079,14.46936678,215.02,214.87,0.03541599]
[1738485514383,15.89656678,215.06,214.88,14.46936678]
[1738485514579,4.652,215.04,214.93,4.6541]
[1738485514784,15.89656678,215.06,214.89,3.0417]
[1738485515080,0.03460524,215.0,214.95,0.03289298]
[1738485515786,0.03460524,215.0,214.96,4.6534]
[1738485516286,0.03460524,215.0,214.95,0.03289298]
[1738485519091,0.03460524,215.0,214.97,4.6533]
[1738485519482,0.03460524,215.0,214.95,0.03289298]
[1738485519887,0.03460524,215.0,214.99,4.6529]
[1738485520884,14.46936678,215.08,214.95,0.03289298]
[1738485521081,14.46936678,215.08,215.04,4.6518]
[1738485521484,14.46936678,215.08,215.03,4.652]
[1738485521881,14.46936678,215.08,215.03,4.68585868]
[1738485522088,14.49009882,215.08,215.03,0.03385868]
[1738485522285,4.6514,215.06,215.03,0.03385868]
[1738485522490,14.49009882,215.08,215.03,0.03385868]
[1738485522684,4.6513,215.07,215.03,0.03385868]
[1738485523184,14.49009882,215.08,215.03,0.03385868]
[1738485524895,0.02073204,215.08,215.03,0.03385868]
[1738485526092,0.02073204,215.08,215.07,4.6512]
[1738485526792,4.6497,215.14,215.08,4.6509]
[1738485527095,14.46936678,215.16,214.96,14.46936678]
[1738485527290,4.6501,215.12,215.02,4.6523]
[1738485527498,14.46936678,215.12,214.92,15.00260631]
[1738485527891,4.651,215.08,215.02,4.6521]
[1738485528091,14.46936678,215.12,214.92,15.00260631]
[1738485528297,14.46936678,215.08,215.03,0.03571301]
[1738485528500,14.46936678,215.08,214.92,15.00260631]
[1738485528696,14.46936678,215.08,215.03,0.03532288]
[1738485528895,14.46936678,215.08,214.92,15.00260631]
[1738485529198,4.6513,215.07,215.03,0.0333306]
[1738485529397,14.46936678,215.08,215.0,4.6527]
[1738485529599,14.46936678,215.08,215.03,0.03455041]
[1738485531201,14.46936678,215.08,214.9,1.4482]
[1738485531603,4.6519,215.04,214.97,4.6532]
[1738485531807,14.46936678,215.08,214.9,1.4482]
[1738485532206,0.03446727,215.01,214.97,4.68677189]
[1738485533309,0.03446727,215.01,214.97,0.03357189]
[1738485533802,4.6531,214.98,214.97,0.03357189]
[1738485536707,0.03446727,215.01,214.97,0.03357189]
[1738485539011,4.6529,214.99,214.97,0.03357189]
[1738485540916,0.03446727,215.01,214.97,0.03357189]
[1738485542010,0.03446727,215.01,214.97,4.68697189]
[1738485542312,0.03446727,215.01,214.97,0.03357189]
[1738485543314,0.03446727,215.01,215.0,4.6527]
[1738485544016,4.6506,215.1,215.04,4.6518]
[1738485545417,4.6499,215.14,215.06,4.6513]
[1738485545915,17.60488791,215.15,215.06,4.6513]
[1738485546117,17.60488791,215.15,215.05,0.03048277]
[1738485546420,14.40488791,215.11,215.05,0.03048277]
[1738485546916,4.6512,215.07,215.05,0.03048277]
[1738485547919,4.6509,215.09,215.05,0.03048277]
[1738485548313,14.40488791,215.11,215.05,0.03048277]
[1738485548618,3.2,215.15,215.05,0.03048277]
[1738485549022,4.6505,215.11,215.05,0.03048277]
[1738485549211,3.2,215.15,215.05,0.03048277]
[1738485550315,4.6502,215.12,215.06,4.6513]
[1738485551219,4.6502,215.12,215.05,0.03048277]
[1738485551220,14.40488791,215.16,215.05,0.03048277]
[1738485551520,4.6492,215.17,215.1,4.6505]
[1738485551720,1.4797,215.19,214.99,4.4762]
[1738485552019,14.40488791,215.16,215.11,0.03163387]
[1738485552318,14.40488791,215.16,214.98,13.0250349]
[1738485553023,4.6495,215.15,215.03,4.652]
[1738485553216,14.40488791,215.2,215.02,14.40488791]
[1738485553518,0.03171702,215.11,215.07,0.03095559]
[1738485553820,4.649,215.17,215.11,4.6503]
[1738485554321,0.03171702,215.16,215.13,4.6499]
[1738485554520,0.03171702,215.16,215.12,0.03069438]
[1738485554521,14.40488791,215.2,215.02,14.40488791]
[1738485554716,0.03171702,215.17,215.12,0.03214604]
[1738485556919,14.40488791,215.16,215.12,0.03214604]
[1738485557824,8.99230023,215.13,215.12,0.03214604]
[1738485558320,13.64220023,215.13,215.12,0.03214604]
[1738485558526,8.99230023,215.13,215.12,0.03214604]
[1738485558823,4.6497,215.15,215.12,0.03214604]
[1738485559024,8.99230023,215.16,215.12,0.03214604]
[1738485559624,4.6499,215.13,215.12,0.03214604]
[1738485559820,13.64220023,215.13,215.12,0.03214604]
[1738485561726,8.99230023,215.16,215.12,0.03214604]
[1738485562331,13.64170023,215.16,215.12,0.03214604]
[1738485563122,8.99230023,215.16,215.12,0.03214604]
[1738485563325,0.03171702,215.17,215.12,0.03214604]
[1738485564331,8.99230023,215.13,214.94,8.99230023]
[1738485564525,8.99230023,215.09,214.95,4.5212]
[1738485565430,0.03056171,215.04,215.0,0.0334613]
[1738485566024,8.99230023,215.03,215.0,0.0334613]
[1738485566927,4.6525,215.02,215.0,0.0334613]
[1738485567125,8.99230023,215.03,214.95,1.5214]
[1738485567329,8.99230023,214.99,214.95,1.5214]
[1738485568329,9.02589598,214.99,214.95,1.55398101]
[1738485569033,13.67879598,214.99,214.95,0.03258101]
[1738485569229,9.02589598,214.99,214.95,0.03258101]
[1738485570634,0.03359575,214.99,214.95,0.03258101]
[1738485571725,0.03359575,214.99,214.97,4.6533]
[1738485573038,13.64400023,215.05,214.99,4.6529]
[1738485573534,4.6518,215.04,214.99,4.6529]
[1738485573737,8.99230023,215.11,215.0,4.6526]
[1738485573933,8.99230023,215.14,215.0,8.99230023]
[1738485574238,0.033577,215.09,215.05,0.03324456]
[1738485574835,0.033577,215.09,215.07,4.6511]
[1738485576239,8.99230023,215.17,215.06,1.5069]
[1738485577035,8.99230023,215.17,215.12,4.6501]
[1738485577432,9.02245184,215.17,215.12,4.6812794]
[1738485577830,0.03015161,215.17,215.12,4.6812794]
[1738485579540,0.03015161,215.17,215.12,0.0311794]
[1738485579541,4.6497,215.14,215.12,0.0311794]
[1738485579735,19.03175324,215.14,215.12,0.0311794]
[1738485579942,14.38205324,215.14,215.12,0.0311794]
[1738485580142,19.03175324,215.14,215.12,0.0311794]
[1738485580842,4.6503,215.11,215.06,1.5069]
[1738485581434,14.38205324,215.1,214.97,1.5337]
[1738485581634,4.6511,215.08,215.01,4.6525]
[1738485582037,0.02962714,215.07,215.02,0.03206685]
[1738485582234,0.02962714,215.07,215.02,4.68426685]
[1738485582840,4.6514,215.06,215.02,0.03206685]
[1738485583040,0.02962714,215.07,215.02,0.03206685]
[1738485584445,4.6515,215.06,215.02,0.03206685]
[1738485584643,0.02962714,215.07,215.02,0.03206685]
[1738485585043,0.02962714,215.07,215.02,4.68426685]
[1738485585243,0.02962714,215.07,215.02,0.03206685]
[1738485585445,0.02962714,215.07,215.05,4.6515]
[1738485585945,0.02962714,215.07,215.02,0.03206685]
[1738485586142,0.02962714,215.07,215.06,4.6514]
[1738485586343,14.38205324,215.16,215.02,0.03206685]
[1738485586544,6.44580652,215.19,214.98,14.38205324]
[1738485586742,4.649,215.17,214.98,14.38205324]
[1738485587246,4.649,215.17,215.11,4.6503]
[1738485587744,0.03008809,215.16,215.12,0.03330596]
[1738485588349,0.03008809,215.16,215.13,4.6498]
[1738485588647,0.03008809,215.16,215.12,0.03330596]
[1738485589146,0.03008809,215.16,215.12,4.68340596]
[1738485589945,0.03008809,215.16,215.12,0.03330596]
[1738485593848,4.67938809,215.16,215.12,0.03330596]
[1738485594849,0.03008809,215.16,214.98,14.38205324]
[1738485595048,14.38205324,215.2,214.98,14.38205324]
[1738485595955,0.03319556,215.11,215.07,0.03087442]
[1738485596142,14.38205324,215.2,214.98,14.38205324]
[1738485596343,0.03423099,215.11,215.07,0.03079581]
[1738485596652,14.38205324,215.16,215.07,0.03126289]
[1738485596846,0.03285653,215.11,215.07,0.03126289]
[1738485598453,4.651,215.08,215.07,0.03126289]
[1738485598954,14.38205324,215.08,214.97,3.0168]
[1738485599552,4.6518,215.05,214.97,1.4831]
[1738485600052,0.02932594,215.03,214.99,0.03127605]
[1738485600853,0.02932594,215.03,215.02,4.6523]
[1738485601048,1.4059,215.13,214.99,0.03127605]
[1738485601256,8.99797267,215.19,215.04,8.99797267]
[1738485601547,8.99797267,215.19,215.05,1.4267]
[1738485601952,13.64667267,215.19,215.13,4.6499]
[1738485602148,8.99797267,215.19,215.05,1.4267]
[1738485602347,0.03255103,215.18,215.14,0.03309558]
[1738485604449,0.03255103,215.18,215.16,4.6492]
[1738485604653,0.03255103,215.18,215.14,0.03309558]
[1738485604654,14.37829479,215.27,215.14,0.03309558]
[1738485604849,14.37829479,215.27,215.08,15.87619479]
[1738485605051,4.6474,215.25,215.16,4.649]
[1738485605252,14.37829479,215.27,215.08,15.87619479]
[1738485605447,14.37829479,215.27,215.12,14.37829479]
[1738485605648,0.03377865,215.22,215.12,14.37829479]
[1738485605954,0.03377865,215.22,215.17,0.03289872]
[1738485606747,0.03377865,215.22,215.21,4.6481]
[1738485608055,14.37829479,215.31,215.17,0.03289872]
[1738485608249,6.44580652,215.34,215.17,1.5375]
[1738485608558,6.44580652,215.34,215.2,14.37829479]
[1738485608750,6.44580652,215.34,215.21,1.5011]
[1738485609354,6.44580652,215.34,215.32,4.6457]
[1738485610759,19.02189479,215.43,215.35,4.6451]
[1738485611058,25.81268905,215.45,215.28,14.37829479]
[1738485611259,25.81268905,215.45,215.37,0.02999821]
[1738485611452,25.81268905,215.45,215.4,4.644]
[1738485611650,25.81268905,215.45,215.37,0.02999821]
[1738485612756,14.37829479,215.4,215.21,1.5011]
[1738485613064,19.02329479,215.36,215.28,4.6466]
[1738485613365,14.37829479,215.36,215.25,4.6471]
[1738485613558,14.37829479,215.36,215.22,2.9333]
[1738485613763,14.37829479,215.32,215.22,2.9333]
[1738485613956,0.03005893,215.31,215.27,0.03382764]
[1738485614357,156.14335917,215.5,215.3,14.37829479]
[1738485614662,31.78472832,215.5,215.31,1.5344]
[1738485614860,31.78472832,215.5,215.32,1.4567]
[1738485615162,4.6422,215.49,215.4,4.6439]
[1738485615359,4.6422,215.49,215.32,1.4567]
[1738485615557,31.78472832,215.5,215.32,1.4567]
[1738485615558,17.40643353,215.5,215.45,4.643]
[1738485616057,17.40643353,215.5,215.47,4.6425]
[1738485616262,17.40643353,215.5,215.38,14.37829479]
[1738485616560,17.40643353,215.5,215.46,4.67643048]
[1738485616765,17.40643353,215.5,215.36,14.37829479]
[1738485617659,17.40643353,215.5,215.32,0.31819845]
[1738485617660,17.40643353,215.5,215.32,14.69649324]